bitfinex-derivatives/quotes_SOLF0:USTF0_20251224
["timestamp","ask_amount","ask_price","bid_price","bid_amount"]
[1766580031081,6.12658063,122.13,122.09,3.36]
[1766580031377,1.58864121,122.14,122.09,3.36]
[1766580031579,6.12348831,122.13,122.09,3.36]
[1766580031779,1.58864121,122.14,122.09,3.36]
[1766580031972,6.12348594,122.13,122.09,3.36]
[1766580032280,1.58864121,122.14,122.1,0.05383647]
[1766580032478,6.12232918,122.13,122.1,0.05383647]
[1766580032780,7.3736,122.13,122.1,0.05383647]
[1766580035878,8.9036,122.13,122.1,0.05383647]
[1766580036079,1.53,122.11,122.07,3.61]
[1766580037074,0.05832662,122.1,122.08,0.05429156]
[1766580039081,0.05832662,122.1,122.05,3.31]
[1766580039980,0.05832662,122.1,122.07,3.31]
[1766580040184,1.54,122.13,122.07,3.36978251]
[1766580040381,6.12458082,122.14,122.07,3.36978251]
[1766580040582,1.6,122.15,122.07,3.31]
[1766580041288,1.6,122.15,122.06,114.7632]
[1766580041289,1.6,122.15,122.1,3.36574942]
[1766580041877,8.9721,122.16,122.1,3.36574942]
[1766580042184,0.0583059,122.14,122.1,3.36574942]
[1766580051894,15.1650097,122.18,122.11,3.31]
[1766580052191,6.1240097,122.17,122.11,3.31]
[1766580052390,9.041,122.18,122.11,3.31]
[1766580052588,6.12305244,122.17,122.11,3.31]
[1766580052789,9.041,122.18,122.11,3.31]
[1766580052992,0.05365629,122.15,122.13,0.05488863]
[1766580056297,9.0502,122.19,122.13,3.36488863]
[1766580057096,0.04974676,122.17,122.13,3.36488863]
[1766580058095,6.11768688,122.2,122.13,3.36488863]
[1766580058287,1.73,122.19,122.13,3.31]
[1766580058996,1.73,122.19,122.15,0.0565304]
[1766580063397,1.73,122.19,122.15,3.5665304]
[1766580063798,1.74,122.21,122.15,3.5665304]
[1766580065999,3.00087119,122.21,122.15,3.5665304]
[1766580068693,1.75,122.2,122.15,3.5665304]
[1766580070804,1.75,122.2,122.15,10.9388304]
[1766580071004,1.75,122.2,122.16,3.51]
[1766580072500,1.26087119,122.21,122.17,3.51]
[1766580072700,1.26087119,122.21,122.18,0.0556919]
[1766580074805,3.01087119,122.22,122.18,0.0556919]
[1766580076108,107.05817119,122.24,122.18,3.5656919]
[1766580076412,99.69087119,122.24,122.19,3.51]
[1766580077600,99.69087119,122.24,122.19,10.8799]
[1766580078203,98.43,122.24,122.19,10.8799]
[1766580078408,96.68,122.24,122.2,3.51]
[1766580078711,96.68,122.24,122.21,0.05196762]
[1766580079913,98.44,122.24,122.21,0.05196762]
[1766580082115,3.02087119,122.23,122.18,3.51]
[1766580083413,0.05196762,122.22,122.19,0.05324045]
[1766580085015,0.05196762,122.22,122.19,3.56324045]
[1766580088712,1.76196762,122.22,122.19,0.05324045]
[1766580096617,0.05196762,122.22,122.19,0.05324045]
[1766580097218,0.05196762,122.22,122.19,3.42324045]
[1766580102528,1.72,122.26,122.2,3.37]
[1766580102730,9.10821689,122.28,122.2,3.37]
[1766580102922,7.8473457,122.27,122.2,3.37]
[1766580103228,7.8473457,122.27,122.21,3.37]
[1766580103425,7.8473457,122.27,122.22,3.37]
[1766580103426,6.0773457,122.27,122.22,3.37]
[1766580103620,3.03087119,122.31,122.24,3.37]
[1766580103924,3.41,122.3,122.26,0.05595487]
[1766580105129,10.7736,122.3,122.26,0.05595487]
[1766580106014,10.7736,122.3,122.2,114.632]
[1766580106015,4.67087119,122.27,122.2,3.37]
[1766580106219,3.41,122.26,122.2,3.37]
[1766580107036,0.05489727,122.24,122.22,0.06280537]
[1766580109837,4.72576846,122.24,122.18,3.37]
[1766580110042,3.41,122.23,122.18,3.37]
[1766580110243,7.3683,122.22,122.18,3.37]
[1766580110743,0.061515,122.21,122.19,0.06086663]
[1766580118654,4.73238619,122.21,122.15,3.37]
[1766580118953,4.67087119,122.2,122.15,3.37]
[1766580119145,12.04027119,122.2,122.15,3.37]
[1766580119648,12.04027119,122.2,122.16,0.05579171]
[1766580122560,7.3701,122.19,122.16,0.05579171]
[1766580122753,4.67087119,122.2,122.16,0.05579171]
[1766580123360,3.42,122.19,122.13,3.61]
[1766580124348,0.05943462,122.17,122.15,0.05920092]
[1766580125758,0.05943462,122.17,122.13,3.61]
[1766580126154,7.3719,122.16,122.11,3.61]
[1766580126362,10.7919,122.16,122.11,3.61]
[1766580126858,3.42,122.16,122.12,0.06005772]
[1766580135363,3.42,122.15,122.12,5.772e-05]
[1766580136057,3.42,122.14,122.12,5.772e-05]
[1766580136363,3.48198206,122.14,122.12,5.772e-05]
[1766580136557,3.42,122.13,122.07,10.9871]
[1766580136956,3.42,122.13,122.08,3.61]
[1766580137661,0.05490424,122.12,122.09,0.0554858]
[1766580142564,0.05490424,122.12,122.09,3.6654858]
[1766580142762,0.00490424,122.12,122.09,3.6654858]
[1766580147569,3.42,122.17,122.1,3.61]
[1766580147760,3.42,122.19,122.12,3.61]
[1766580148571,0.06020807,122.17,122.14,0.05372144]
[1766580158684,0.06020807,122.17,122.14,3.60372144]
[1766580162179,3.47,122.2,122.14,3.60372144]
[1766580162377,3.47,122.2,122.14,3.55]
[1766580163182,3.47,122.2,122.16,0.05343177]
[1766580164279,0.05997613,122.19,122.16,0.05343177]
[1766580173598,0.05997613,122.19,122.16,3.60343177]
[1766580174090,0.05997613,122.19,122.16,0.05343177]
[1766580197613,3.45997613,122.19,122.16,0.05343177]
[1766580200425,3.45997613,122.19,122.16,0.00343177]
[1766580204820,3.4,122.18,122.13,10.7036]
[1766580205721,3.4,122.18,122.14,0.05555773]
[1766580206724,3.4,122.17,122.12,7.3741]
[1766580207723,0.0523581,122.16,122.13,0.05701929]
[1766580215431,0.0523581,122.16,122.13,7.43051929]
[1766580215631,3.37,122.19,122.13,11.04051929]
[1766580216632,0.05948086,122.17,122.13,11.04051929]
[1766580218033,0.05948086,122.17,122.14,3.33]
[1766580218219,3.37,122.19,122.14,10.7027]
[1766580218424,4.56073154,122.21,122.15,3.33]
[1766580218620,10.60366218,122.21,122.15,3.33]
[1766580218825,3.3,122.2,122.15,3.33]
[1766580219226,0.05842065,122.19,122.16,0.05815793]
[1766580219629,2.065e-05,122.2,122.16,0.05815793]
[1766580219930,96.68,122.22,122.16,3.38815793]
[1766580220734,0.05177676,122.2,122.17,7.3711]
[1766580220934,8.62793154,122.24,122.17,7.3711]
[1766580221135,6.04141915,122.23,122.17,7.3711]
[1766580221728,3.12,122.22,122.17,7.3711]
[1766580221928,0.05876162,122.21,122.18,0.05278625]
[1766580223439,1.26073154,122.26,122.18,3.38278625]
[1766580223731,1.26073154,122.27,122.18,3.33]
[1766580223934,6.03793769,122.26,122.18,3.33]
[1766580224334,6.03793769,122.26,122.17,114.6588]
[1766580224335,1.26073154,122.27,122.21,0.05685358]
[1766580224534,14.66386923,122.27,122.21,0.05685358]
[1766580224740,6.03793769,122.26,122.21,0.05685358]
[1766580225437,8.62593154,122.27,122.21,0.05685358]
[1766580225630,14.66386923,122.27,122.21,0.05685358]
[1766580225826,8.62593154,122.27,122.21,0.05685358]
[1766580226242,14.658884,122.27,122.21,0.05685358]
[1766580226444,8.62593154,122.27,122.21,0.05685358]
[1766580231941,7.3641,122.29,122.22,3.33]
[1766580232140,1.26073154,122.28,122.24,0.00027027]
[1766580232339,1.26073154,122.26,122.2,3.33]
[1766580233247,0.05493266,122.24,122.22,0.05321933]
[1766580235648,0.05493266,122.24,122.18,3.33]
[1766580236745,0.05493266,122.24,122.2,0.05165001]
[1766580243155,0.05493266,122.24,122.2,3.30165001]
[1766580246144,1.26073154,122.28,122.2,3.30165001]
[1766580246349,1.26073154,122.28,122.2,3.25]
[1766580247158,0.05383846,122.25,122.23,0.06289706]
[1766580273970,0.05383846,122.25,122.18,3.49]
[1766580274179,6.08539357,122.25,122.18,3.49]
[1766580274379,0.05383846,122.25,122.18,3.49]
[1766580274579,7.42063846,122.25,122.18,3.49]
[1766580274973,7.42063846,122.25,122.2,0.0610346]
[1766580275973,7.3671,122.24,122.2,0.0610346]
[1766580276180,13.39680609,122.24,122.2,0.0610346]
[1766580278071,6.08354455,122.25,122.2,0.0610346]
[1766580282189,6.07710849,122.25,122.2,0.0610346]
[1766580283180,0.05383846,122.25,122.2,0.0610346]
[1766580283585,9.3882515,122.25,122.2,0.0610346]
[1766580283790,15.41152153,122.25,122.2,0.0610346]
[1766580284085,9.3882515,122.25,122.2,0.0610346]
[1766580284487,15.41050053,122.25,122.2,0.0610346]
[1766580284682,9.3882515,122.25,122.2,0.0610346]
[1766580285187,15.41036318,122.25,122.2,0.0610346]
[1766580285394,9.3882515,122.25,122.2,0.0610346]
[1766580285783,15.41015191,122.25,122.2,0.0610346]
[1766580285983,9.3882515,122.25,122.2,0.0610346]
[1766580286388,15.41015145,122.25,122.2,0.0610346]
[1766580286691,9.3882515,122.25,122.2,0.0610346]
[1766580287077,15.40981725,122.25,122.2,0.0610346]
[1766580287282,9.3882515,122.25,122.2,0.0610346]
[1766580287690,15.40949289,122.25,122.2,0.0610346]
[1766580287891,0.05383846,122.25,122.2,0.0610346]
[1766580288389,102.71507985,122.25,122.2,0.0610346]
[1766580288584,96.69383846,122.25,122.2,0.0610346]
[1766580293788,104.06023846,122.25,122.2,0.0610346]
[1766580299203,96.69383846,122.25,122.2,0.0610346]
[1766580301802,98.6617515,122.25,122.2,0.0610346]
[1766580302598,7.367,122.24,122.2,0.0610346]
[1766580304108,104.007,122.24,122.2,0.0610346]
[1766580306808,96.64,122.24,122.2,0.0610346]
[1766580309911,97.90018479,122.24,122.2,0.0610346]
[1766580311795,105.26728479,122.24,122.2,0.0610346]
[1766580311995,1.26018479,122.22,122.13,3.44]
[1766580312198,1.26018479,122.2,122.13,3.44]
[1766580312399,1.26018479,122.2,122.15,3.44]
[1766580313011,0.0609458,122.19,122.16,0.06077666]
[1766580313201,0.0609458,122.19,122.1,96.64]
[1766580313400,1.26018479,122.18,122.13,3.44]
[1766580314510,0.0607849,122.17,122.14,0.06151556]
[1766580319405,1.32096969,122.17,122.11,3.44]
[1766580319606,97.98096969,122.17,122.11,3.44]
[1766580320616,97.98096969,122.17,122.13,0.06021173]
[1766580321013,105.35226969,122.17,122.11,3.44]
[1766580322114,105.35226969,122.17,122.13,0.05979983]
[1766580325326,105.35226969,122.17,122.11,3.44]
[1766580326216,105.35226969,122.17,122.13,0.05424481]
[1766580328724,105.35226969,122.17,122.13,3.49424481]
[1766580329017,105.35226969,122.17,122.13,0.05424481]
[1766580331521,105.39226969,122.17,122.13,0.05424481]
[1766580332724,96.7607849,122.17,122.13,0.05424481]
[1766580332931,96.7607849,122.17,122.13,3.52424481]
[1766580333924,96.7607849,122.17,122.13,0.05424481]
[1766580341740,1.26018479,122.16,122.13,0.05424481]
[1766580361358,8.63198479,122.16,122.13,0.05424481]
[1766580361548,8.63198479,122.16,122.1,3.24]
[1766580362658,8.63198479,122.16,122.12,0.05489503]
[1766580362659,0.05351171,122.14,122.12,0.05489503]
[1766580387885,9.34261011,122.18,122.12,3.29489503]
[1766580388083,6.09582344,122.17,122.12,3.29489503]
[1766580388285,9.34261011,122.18,122.12,3.29489503]
[1766580388483,6.09524765,122.17,122.12,3.29489503]
[1766580388683,9.34261011,122.18,122.12,3.29489503]
[1766580388879,0.05481116,122.16,122.12,3.29489503]
[1766580389279,6.0947513,122.19,122.12,3.29489503]
[1766580389478,106.04141011,122.2,122.12,3.24]
[1766580389679,6.09413279,122.19,122.12,3.24]
[1766580389880,98.67161011,122.2,122.12,3.24]
[1766580390081,6.09414374,122.19,122.12,3.24]
[1766580390281,0.0560708,122.17,122.14,0.05183537]
[1766580398596,1.97161011,122.22,122.14,3.30183537]
[1766580398898,6.07261411,122.23,122.14,3.25]
[1766580399095,6.07261411,122.22,122.14,3.25]
[1766580399301,6.07261411,122.23,122.14,3.25]
[1766580399492,0.05350456,122.2,122.17,0.05512109]
[1766580402092,7.42290456,122.2,122.17,0.05512109]
[1766580404202,0.05350456,122.2,122.17,0.05512109]
[1766580409205,0.05350456,122.2,122.17,3.30512109]
[1766580410506,1.97161011,122.26,122.17,3.30512109]
[1766580410711,104.70515429,122.26,122.17,3.25]
[1766580411008,98.65161011,122.26,122.17,3.25]
[1766580411606,0.05652027,122.23,122.2,0.05216019]
[1766580412106,0.05652027,122.23,122.2,3.30216019]
[1766580412414,7.3669,122.25,122.2,3.30216019]
[1766580412905,7.3669,122.25,122.14,116.65851011]
[1766580412906,1.97161011,122.24,122.14,3.25]
[1766580413312,98.65161011,122.24,122.14,3.25]
[1766580414011,0.0574913,122.2,122.18,0.05424962]
[1766580414814,0.04,122.24,122.18,3.30424962]
[1766580415716,0.05569896,122.22,122.18,3.30424962]
[1766580417905,0.04,122.24,122.18,3.30424962]
[1766580418910,0.05787285,122.22,122.18,3.30424962]
[1766580419110,0.04,122.24,122.18,3.30424962]
[1766580420116,0.05720486,122.22,122.18,3.30424962]
[1766580425318,0.20720486,122.22,122.18,3.30424962]
[1766580426819,7.57540486,122.22,122.18,3.30424962]
[1766580427320,0.20720486,122.22,122.18,3.30424962]
[1766580429216,0.20720486,122.22,122.18,0.05424962]
[1766580432017,1.46782297,122.22,122.18,0.05424962]
[1766580434523,1.46782297,122.22,122.18,3.50424962]
[1766580434719,1.31782297,122.22,122.18,3.50424962]
[1766580438428,0.05720486,122.22,122.19,3.45]
[1766580441725,1.31782297,122.22,122.19,3.45]
[1766580442734,8.83622297,122.22,122.18,0.05424962]
[1766580444235,7.57560486,122.22,122.18,0.05424962]
[1766580444428,1.46782297,122.22,122.18,0.05424962]
[1766580447740,1.31782297,122.22,122.18,3.29424962]
[1766580447936,0.05720486,122.22,122.18,3.29424962]
[1766580465452,1.31782297,122.22,122.18,3.29424962]
[1766580467755,6.23264526,122.21,122.18,0.05424962]
[1766580467947,0.15,122.21,122.18,0.05424962]
[1766580468549,7.5188,122.21,122.18,0.05424962]
[1766580468748,6.08231301,122.2,122.18,0.05424962]
[1766580468948,7.5188,122.21,122.18,0.05424962]
[1766580469146,6.08231301,122.2,122.18,0.05424962]
[1766580469353,7.5188,122.21,122.18,0.05424962]
[1766580469653,6.08126609,122.2,122.18,0.05424962]
[1766580469852,7.5188,122.21,122.18,0.05424962]
[1766580470053,6.0812634,122.2,122.18,0.05424962]
[1766580470255,0.15,122.21,122.18,0.05424962]
[1766580470454,6.07979292,122.2,122.18,0.05424962]
[1766580470647,0.15,122.21,122.18,0.05424962]
[1766580470849,6.07979292,122.2,122.18,0.05424962]
[1766580471154,0.15,122.21,122.18,0.05424962]
[1766580473155,7.5188,122.21,122.18,0.05424962]
[1766580483262,13.59015202,122.21,122.18,0.05424962]
[1766580485874,1.41061811,122.2,122.14,3.41]
[1766580486868,0.05185221,122.18,122.16,0.05459367]
[1766580501368,0.20185221,122.18,122.13,3.41]
[1766580501773,6.28797853,122.18,122.13,3.41]
[1766580501962,0.20185221,122.18,122.13,3.41]
[1766580502166,6.28797853,122.18,122.13,3.41]
[1766580502378,0.20185221,122.18,122.14,0.0597666]
[1766580502568,13.65867853,122.18,122.14,0.0597666]
[1766580503777,7.5212,122.17,122.1,3.41]
[1766580503977,13.60726782,122.17,122.1,3.41]
[1766580504178,7.5212,122.17,122.1,3.41]
[1766580504580,13.60577454,122.17,122.11,3.41]
[1766580504775,7.5212,122.17,122.11,3.41]
[1766580504977,0.05325196,122.15,122.13,0.05703767]
[1766580505673,6.08507478,122.18,122.13,3.46703767]
[1766580505878,7.5692,122.21,122.13,3.46703767]
[1766580506178,6.28365211,122.2,122.13,3.41]
[1766580506379,0.2,122.2,122.13,3.41]
[1766580506580,6.28437168,122.2,122.13,3.41]
[1766580506773,0.06073967,122.18,122.15,3.46554831]
[1766580513486,0.00073967,122.18,122.15,3.46554831]
[1766580526086,7.37133967,122.18,122.11,7.3742]
[1766580526994,7.37133967,122.18,122.13,0.05424912]
[1766580528096,7.37133967,122.18,122.13,3.38424912]
[1766580532800,0.00073967,122.18,122.13,3.38424912]
[1766580540010,0.00073967,122.18,122.14,3.33]
[1766580541602,0.00073967,122.18,122.15,3.41]
[1766580544804,0.00073967,122.18,122.13,3.46424912]
[1766580545804,7.37133967,122.18,122.13,3.46424912]
[1766580551618,3.5,122.17,122.13,3.46424912]
[1766580555722,0.00073967,122.18,122.13,3.46424912]
[1766580557813,0.00073967,122.18,122.14,3.41]
[1766580562529,0.00073967,122.18,122.15,3.41]
[1766580572328,0.00073967,122.18,122.13,0.05424912]
[1766580572329,0.00073967,122.18,122.13,3.52424912]
[1766580572537,4.71207009,122.18,122.13,3.52424912]
[1766580573131,3.45073967,122.18,122.13,3.52424912]
[1766580573332,4.71207009,122.18,122.13,3.52424912]
[1766580583646,3.45073967,122.18,122.13,3.52424912]
[1766580595762,0.00073967,122.18,122.14,3.42]
[1766580606067,0.00073967,122.18,122.15,3.53]
[1766580615666,0.00073967,122.18,122.13,10.95784912]
[1766580615864,0.00073967,122.18,122.13,3.58424912]
[1766580627273,0.00073967,122.18,122.13,10.95774912]
[1766580642085,0.00073967,122.18,122.14,3.27]
[1766580642486,3.56073967,122.18,122.14,3.27]
[1766580647786,0.00073967,122.18,122.14,3.27]
[1766580649486,0.00073967,122.18,122.15,3.27]
[1766580650387,0.00073967,122.18,122.16,3.27]
[1766580650588,7.3688,122.21,122.16,3.27]
[1766580651388,3.56,122.23,122.17,3.27]
[1766580651588,3.56,122.23,122.17,3.32834385]
[1766580652499,0.05744181,122.21,122.17,3.32834385]
[1766580652699,0.05744181,122.21,122.18,3.27]
[1766580652901,3.61744181,122.21,122.17,0.05834385]
[1766580653095,0.05744181,122.21,122.17,0.05834385]
[1766580653398,0.05744181,122.21,122.17,3.32834385]
[1766580654997,10.9273,122.24,122.17,3.32834385]
[1766580655598,3.56,122.23,122.18,3.27]
[1766580655798,7.3673,122.24,122.18,3.27]
[1766580655997,0.05533862,122.22,122.2,0.05951161]
[1766580656693,10.9262,122.26,122.2,3.32951161]
[1766580657401,3.56,122.25,122.2,3.32951161]
[1766580657905,0.03083978,122.24,122.2,3.32951161]
[1766580661396,3.56083978,122.24,122.18,3.4]
[1766580661602,3.53,122.23,122.14,3.4]
[1766580662209,10.8982,122.22,122.15,3.4]
[1766580662413,0.06085535,122.2,122.17,0.05925075]
[1766580716874,11.00025535,122.2,122.17,0.05925075]
[1766580717069,11.00025535,122.2,122.17,0.00169501]
[1766580724175,10.94846434,122.24,122.17,3.57169501]
[1766580724380,9.37631935,122.23,122.17,3.57169501]
[1766580724679,3.31,122.23,122.17,3.57169501]
[1766580725278,0.05913353,122.21,122.17,3.57169501]
[1766580725679,0.05913353,122.21,122.17,10.94289501]
[1766580733786,0.05913353,122.21,122.18,3.57]
[1766580734982,0.05913353,122.21,122.18,10.9405]
[1766580735579,3.31,122.23,122.17,0.00169501]
[1766580735580,3.31,122.25,122.2,3.57]
[1766580736689,0.02791825,122.24,122.21,0.05857463]
[1766580737876,0.02791825,122.24,122.19,3.57]
[1766580737877,3.33791825,122.24,122.19,3.57]
[1766580738591,3.33791825,122.24,122.2,3.57]
[1766580738888,0.02791825,122.24,122.21,0.05461094]
[1766580741194,3.33791825,122.24,122.21,0.05461094]
[1766580741694,3.33791825,122.24,122.18,3.57]
[1766580741985,3.31,122.24,122.18,3.57]
[1766580742585,0.06286402,122.22,122.2,0.05341865]
[1766580806642,3.22,122.24,122.2,0.05341865]
[1766580807542,0.05593829,122.23,122.2,0.05341865]
[1766580821146,0.05593829,122.23,122.2,3.42341865]
[1766580830257,7.3664,122.25,122.2,3.42341865]
[1766580831348,0.02230151,122.24,122.2,3.42341865]
[1766580834356,0.00230151,122.24,122.21,3.37]
[1766580840064,7.3657,122.27,122.22,3.37]
[1766580841066,7.3657,122.27,122.23,0.05385931]
[1766580841566,7.3657,122.26,122.22,2.44324177]
[1766580841765,13.34419949,122.26,122.22,2.44324177]
[1766580842468,7.3657,122.26,122.22,2.44324177]
[1766580842670,0.05385931,122.25,122.23,0.06258474]
[1766580847072,0.00385931,122.25,122.23,3.55258474]
[1766580847565,3.55,122.29,122.23,3.55258474]
[1766580847767,13.33628279,122.3,122.23,3.55258474]
[1766580848165,10.9139,122.3,122.23,3.55258474]
[1766580848470,7.364,122.29,122.23,3.55258474]
[1766580854077,10.914,122.29,122.23,3.55258474]
[1766580858382,10.9127,122.31,122.24,3.49]
[1766580858575,3.55,122.3,122.26,0.05863107]
[1766580859570,10.9134,122.3,122.26,0.05863107]
[1766580860481,10.9134,122.3,122.26,3.54863107]
[1766580864284,10.9134,122.3,122.26,0.05863107]
[1766580866584,229.0032,122.35,122.26,3.54863107]
[1766580866784,3.55,122.35,122.29,2.25915864]
[1766580867590,3.55,122.39,122.29,2.25915864]
[1766580867777,3.55,122.39,122.29,2.2]
[1766580867983,3.55,122.39,122.33,0.05867285]
[1766580868684,3.55,122.38,122.33,0.05867285]
[1766580872094,10.9087,122.38,122.33,0.05867285]
[1766580872395,3.39,122.37,122.33,0.05867285]
[1766580885807,3.39,122.37,122.33,2.25867285]
[1766580897517,10.818,122.39,122.33,2.25867285]
[1766580897716,3.46,122.38,122.33,2.25867285]
[1766580899015,100.02,122.4,122.34,2.2]
[1766580899209,100.02,122.4,122.36,0.05899528]
[1766580899816,3.46,122.42,122.36,2.25899528]
[1766580900623,3.46,122.44,122.36,2.25899528]
[1766580900822,3.46,122.44,122.39,0.06052146]
[1766580902422,3.3,122.42,122.39,0.00052146]
[1766580902622,3.3,122.42,122.34,98.77]
[1766580903020,3.3,122.43,122.36,2.25]
[1766580903715,0.06022864,122.41,122.38,0.05758476]
[1766580908327,0.06022864,122.41,122.38,2.30758476]
[1766580908533,0.00022864,122.41,122.38,2.30758476]
[1766580909524,0.00022864,122.41,122.39,7.3579]
[1766580918240,3.3,122.44,122.4,7.3572]
[1766580919437,3.3,122.44,122.41,0.05948044]
[1766580921144,4.5558816,122.46,122.41,7.41608044]
[1766580921338,4.5558816,122.46,122.41,9.60608044]
[1766580922349,4.5558816,122.46,122.42,7.356]
[1766580922540,97.7558816,122.48,122.42,3.3]
[1766580922737,97.7558816,122.48,122.44,0.06237057]
[1766580924545,101.0558816,122.48,122.44,0.06237057]
[1766580925044,3.3,122.47,122.44,0.06237057]
[1766580926149,4.5558816,122.47,122.44,0.06237057]
[1766580926346,4.5558816,122.45,122.4,3.3]
[1766580926744,4.5558816,122.45,122.4,10.6572]
[1766580927445,0.05795165,122.44,122.41,0.05649373]
[1766580938944,3.30795165,122.44,122.41,0.05649373]
[1766580940851,3.30795165,122.44,122.38,103.8381]
[1766580941054,3.30795165,122.44,122.38,96.48]
[1766580941253,3.30795165,122.44,122.38,100.03]
[1766580941953,3.30795165,122.44,122.4,0.05996144]
[1766580949062,3.30795165,122.44,122.4,7.41696144]
[1766580954761,0.05795165,122.44,122.4,7.41716144]
[1766580954967,0.05795165,122.44,122.41,3.55]
[1766580956567,0.05795165,122.44,122.41,10.9066]
[1766580957061,0.05795165,122.44,122.41,7.3566]
[1766580957767,0.05795165,122.44,122.4,3.60996144]
[1766580960269,0.05795165,122.44,122.4,10.96686144]
[1766580965173,0.05795165,122.44,122.41,10.8064]
[1766580965376,3.52,122.47,122.42,3.45]
[1766580966168,3.52,122.47,122.42,10.806]
[1766580966372,0.05422447,122.46,122.43,0.05200891]
[1766580967378,3.57422447,122.46,122.43,0.05200891]
[1766580968278,3.57422447,122.46,122.43,0.00200891]
[1766580970177,3.52,122.45,122.43,0.00200891]
[1766580971681,10.8744,122.45,122.43,0.00200891]
[1766580973889,3.52,122.44,122.43,0.00200891]
[1766580975083,13.33903447,122.45,122.43,0.00200891]
[1766580975289,16.85903447,122.45,122.43,0.00200891]
[1766580977394,10.8744,122.45,122.43,0.00200891]
[1766580979293,96.53422447,122.46,122.43,0.00200891]
[1766580979492,100.05422447,122.46,122.43,0.00200891]
[1766580985202,3.52,122.45,122.43,0.00200891]
[1766580988394,96.53422447,122.46,122.43,0.00200891]
[1766580990102,0.05422447,122.46,122.43,0.00200891]
[1766580992296,96.48,122.48,122.43,7.35740891]
[1766580992499,8.21593812,122.5,122.44,3.27]
[1766580992701,3.28,122.49,122.44,3.27]
[1766580993501,0.05339451,122.48,122.45,0.05465911]
[1766580994602,3.33339451,122.48,122.45,0.05465911]
[1766580995502,3.33339451,122.48,122.45,0.00465911]
[1766580998103,3.56,122.47,122.45,0.00465911]
[1766581006415,3.56,122.47,122.41,3.37]
[1766581007009,3.56,122.49,122.42,3.37]
[1766581007409,0.05382758,122.47,122.44,0.05164082]
[1766581007811,0.05382758,122.47,122.44,3.42164082]
[1766581008017,8.49593812,122.5,122.44,3.42164082]
[1766581008710,8.49593812,122.5,122.44,10.77644082]
[1766581008913,0.05372855,122.48,122.44,10.77644082]
[1766581011210,123.91987601,122.54,122.47,3.37]
[1766581011211,3.56,122.53,122.47,3.37]
[1766581012305,3.56,122.53,122.49,0.05459529]
[1766581013616,3.56,122.53,122.49,0.00459529]
[1766581014610,3.61408398,122.52,122.49,0.00459529]
[1766581017321,10.96428398,122.52,122.49,0.00459529]
[1766581017818,3.56,122.51,122.49,0.00459529]
[1766581018421,3.56,122.49,122.43,3.37]
[1766581019426,0.05867927,122.47,122.45,0.05429867]
[1766581020513,3.56,122.49,122.45,0.05429867]
[1766581021220,3.8,122.51,122.45,11.20829867]
[1766581022420,3.8,122.51,122.45,3.85429867]
[1766581024015,3.8,122.53,122.45,114.45249867]
[1766581024320,3.8,122.55,122.48,3.85905991]
[1766581024521,3.8,122.55,122.5,0.06028314]
[1766581024824,3.8,122.54,122.5,0.06028314]
[1766581026521,3.8,122.54,122.5,0.00028314]
[1766581027423,3.85301016,122.53,122.5,0.00028314]
[1766581032030,3.85301016,122.53,122.44,11.1547]
[1766581032331,3.8,122.53,122.45,3.8]
[1766581032719,3.8,122.51,122.45,3.8]
[1766581032922,0.06028314,122.49,122.47,0.05866479]
[1766581034334,3.8,122.51,122.47,0.05866479]
[1766581039144,3.8,122.51,122.43,11.1551]
[1766581039845,3.8,122.49,122.43,11.1551]
[1766581040043,0.05469454,122.47,122.45,0.05540535]
[1766581040539,0.05469454,122.47,122.43,3.8]
[1766581041442,0.05469454,122.47,122.43,11.1554]
[1766581041746,0.05469454,122.47,122.44,0.06125059]
[1766581047038,3.85469454,122.47,122.44,0.06125059]
[1766581048953,0.05469454,122.47,122.44,0.06125059]
[1766581050855,0.05469454,122.47,122.44,3.86125059]
[1766581051557,0.00469454,122.47,122.44,11.21605059]
[1766581051758,0.00469454,122.47,122.45,4.27]
[1766581055959,0.00469454,122.47,122.44,7.41605059]
[1766581057553,0.00469454,122.47,122.45,7.3543]
[1766581057758,0.00469454,122.47,122.45,11.6243]
[1766581057954,5.36508281,122.51,122.45,11.6243]